[Event "American Cup Elimination 2023"]
[Site "Saint Louis"]
[Date "2023.03.21"]
[Round "2.2"]
[White "Shankland, Sam"]
[Black "Dominguez Perez, Leinier"]
[Result "1/2-1/2"]
[ECO "C43"]
[WhiteElo "2710"]
[BlackElo "2743"]
[Annotator "TA"]
[PlyCount "99"]
[EventDate "2023.03.15"]
[EventType "k.o."]
[EventCountry "USA"]
[SourceTitle "playchess.com"]
[Source "ChessBase"]
[SourceQuality "1"]
[TimeControl "1500+10"]

{[%evp 11,99,14,28,12,35,0,9,0,6,6,8,7,2,0,0,0,22,19,17,0,0,0,0,0,9,16,17,10,16,15,14,10,17,5,4,-7,0,-18,0,-6,-13,-10,0,0,0,-27,0,-4,0,-41,-27,-34,-31,-31,-29,-30,-30,-31,-29,-87,-87,-88,-77,-145,-91,-100,-89,-74,-66,-66,-66,-66,-66,-66,-66,-66,-66,-66,-66,-66,-66,-66,-51,-67,0,-66,0,-70,0,-66]} 1. e4 {[%emt 0:00:01]} e5 {[%emt 0:00:02]} 2. Nf3 {[%emt 0:00:01]} Nf6 {[%emt 0:00:01]} 3. d4 {[%emt 0:00:02]} Nxe4 {[%emt 0:00:11]} 4. Bd3 {[%emt 0:00:02]} d5 {[%emt 0:00:02]} 5. Nxe5 {[%emt 0:00:02]} Nd7 {[%emt 0:00:01]} 6. Nxd7 {[%emt 0:00:02]} Bxd7 {[%emt 0:00:02]} 7. Nc3 {[%emt 0:00:01] C43: Petroff Defence: 3 d4.} Qh4 {[%emt 0:05:23][%csl Ge4][%cal Rh4f2] [#]} 8. Nxe4 $146 {[%emt 0:00:03]} (8. O-O $5 {[%cal Rc3d5]} Nxc3 9. bxc3 $11) ({Predecessor:} 8. O-O Nxc3 9. bxc3 O-O-O 10. Qf3 Be6 11. Bf4 Bd6 12. Bg3 Qg4 13. Qxg4 Bxg4 14. Rfe1 Be6 15. Be5 Bxe5 16. Rxe5 {½-½ Vasquez Schroder,R (2500)-Deac,B (2679) Titled Tuesday intern op 26th Apr Early blitz 2022 (11)}) 8... dxe4 {[%emt 0:00:03]} 9. g3 {[%emt 0:00:01]} Bb4+ {[%emt 0:05:57]} 10. c3 {[%emt 0:00:01]} Qe7 {[%emt 0:00:02]} 11. Bc2 {[%emt 0:00:01]} Bd6 {[%emt 0:00:01]} 12. O-O {[%emt 0:00:06][%cal Oc2e4]} O-O {[%emt 0:00:35]} 13. f3 {[%emt 0:00:05]} exf3 {[%emt 0:00:32]} 14. Qxf3 {[%emt 0:00:02]} Rae8 {[%emt 0:02:46]} 15. Bf4 {[%emt 0:03:29]} (15. Qd3 $5 {[%cal Rd3h7]} f5 16. Bd2 $14) 15... Bxf4 {[%emt 0:01:31]} 16. Qxf4 {[%emt 0:00:19]} Bh3 {[%emt 0:01:01]} 17. Rfd1 {[%emt 0:00:17]} Qe3+ {[%emt 0:01:21]} 18. Qxe3 {[%emt 0:00:11]} Rxe3 {[%emt 0:00:01]} 19. Re1 {[%emt 0:00:49] Dodges Re2} Rfe8 {[%emt 0:00:01]} 20. Rxe3 {[%emt 0:00:12]} Rxe3 $11 {[%emt 0:00:01][%mdl 4096] Endgame KRB-KRB} 21. Kf2 {[%emt 0:00:01] Wards off Re2+} Re6 {[%emt 0:00:19]} 22. d5 {[%emt 0:01:17]} Re5 {[%emt 0:00:14]} 23. c4 {[%emt 0:00:50]} Kf8 {[%emt 0:00:33]} 24. Rd1 {[%emt 0:01:27]} (24. Bxh7 g6 25. Rd1 Kg7 26. Bxg6 (26. d6 $2 cxd6 27. Bxg6 fxg6 $19) 26... fxg6 $17) 24... Ke7 {[%emt 0:00:42]} (24... Bg4 $5 {[%cal Re5e2]} 25. Rd2 Ke7 $11) 25. b4 {[%emt 0:01:09]} (25. Bxh7 g6 26. Rd4 Rf5+ 27. Ke3 Rh5 28. Re4+ Kf8 29. Bxg6 (29. Rh4 $2 Rxh4 30. gxh4 Kg7 $19) 29... fxg6 $17) 25... Bg4 {[%emt 0:01:13] ...Re2+ would be deadly.} 26. Rd2 {[%emt 0:00:11] Inhibits Re2+.} b6 {[%emt 0:00:26]} 27. Bd3 {[%emt 0:01:00]} Kd6 {[%emt 0:00:27]} 28. Bf1 {[%emt 0:00:09]} Rf5+ {[%emt 0:00:44]} 29. Kg1 {[%emt 0:00:02]} Re5 {[%emt 0:00:01]} 30. Rd4 {[%emt 0:01:36]} Bd7 {[%emt 0:00:33]} 31. Kf2 {[%emt 0:01:04] Against Re3} a5 {[%emt 0:00:58]} 32. a3 {[%emt 0:00:15]} axb4 {[%emt 0:00:27]} 33. axb4 {[%emt 0:00:01]} Re8 {[%emt 0:00:27]} 34. Bd3 {[%emt 0:00:53]} h6 {[%emt 0:00:18]} 35. Bc2 {[%emt 0:01:05]} (35. Rf4 $11 {remains equal.} f6 36. b5) 35... Ra8 $17 {[%emt 0:00:16] Hoping for ...Ra2.} 36. Ke3 {[%emt 0:00:20]} Ra2 {[%emt 0:00:27]} 37. Bb3 {[%emt 0:01:04] [#]} ({White should play} 37. Rd2) 37... Ra3 {[%emt 0:01:16]} (37... Rb2 $142 $1 {[%cal Rb2b3]} 38. Rd3 Bf5) 38. Rd3 {[%emt 0:00:00]} Bf5 {[%emt 0:00:02]} 39. Rc3 {[%emt 0:00:02] [#]} Bc2 $1 {[%emt 0:00:01][%mdl 64] Pin} 40. c5+ $1 {[%emt 0:01:06]} bxc5 {[%emt 0:00:02]} 41. bxc5+ {[%emt 0:00:01]} Ke5 {[%emt 0:00:01]} 42. d6 $1 {[%emt 0:00:29]} cxd6 {[%emt 0:00:02]} (42... Rxb3 $2 43. Rxb3 cxd6 44. Rc3 $18) (42... Bxb3 43. d7 (43. dxc7 Ra8 $11) 43... Ra8 44. Rxb3 $16) 43. cxd6 {[%emt 0:00:34]} Kxd6 {[%emt 0:00:02]} ({But not} 43... Rxb3 44. Rxb3 Kxd6 45. Rb8 $16) ({Much less strong is} 43... Bxb3 44. d7 Be6 45. Rxa3 (45. d8=R $2 {is the wrong capture.} Rxc3+ 46. Kd2 Ra3 $19) 45... Bxd7 46. Ra5+ Ke6 47. Ra7 $16) 44. Rxc2 {[%emt 0:00:00] Threatens to win with Rc3.} Rxb3+ $15 {[%emt 0:00:02] KR-KR} 45. Kf2 {[%emt 0:00:01]} Ra3 {[%emt 0:00:02]} 46. Rb2 {[%emt 0:00:01]} Rc3 {[%emt 0:00:01]} 47. Re2 {[%emt 0:00:02]} Ra3 {[%emt 0:00:02]} 48. Rb2 $1 {[%emt 0:00:01]} Rc3 {[%emt 0:00:02]} 49. Re2 $1 {[%emt 0:00:00]} Ra3 {[%emt 0:00:02]} 50. Rb2 $1 {[%emt 0:00:01] Weighted Error Value: White=0.10 (very precise) /Black=0.11 (very precise)} 1/2-1/2

[Event "American Cup Elimination 2023"]
[Site "Saint Louis"]
[Date "2023.03.19"]
[Round "2.2"]
[White "Robson, Ray"]
[Black "Shankland, Sam"]
[Result "1/2-1/2"]
[ECO "C55"]
[WhiteElo "2702"]
[BlackElo "2710"]
[Annotator "TA"]
[PlyCount "99"]
[EventDate "2023.03.15"]
[EventType "k.o."]
[EventCountry "USA"]
[SourceTitle "playchess.com"]
[Source "ChessBase"]
[SourceQuality "1"]
[TimeControl "1500+10"]

{[%evp 16,99,6,7,23,-18,21,13,14,0,46,51,54,21,60,18,26,26,45,46,43,60,59,53,46,52,62,52,45,48,46,41,45,42,61,62,99,62,68,61,68,52,68,61,69,65,80,84,83,57,84,79,76,77,238,225,237,61,54,0,0,0,0,0,0,0,0,0,0,0,0,0,0,0,0,0,0,0,0,0,0,0,0,0,0,0]} 1. e4 {[%emt 0:00:04]} e5 {[%emt 0:00:00]} 2. Nf3 {[%emt 0:00:04]} Nc6 {[%emt 0:00:01]} 3. Bc4 {[%emt 0:00:13]} Nf6 {[%emt 0:00:02]} 4. d3 {[%emt 0:00:05]} Be7 {[%emt 0:00:01]} 5. O-O {[%emt 0:00:29]} O-O {[%emt 0:00:02]} 6. Nc3 {[%emt 0:01:50]} d6 {[%emt 0:00:02]} 7. a3 {[%emt 0:00:15]} Bg4 {[%emt 0:00:27] 7...h6 deserves study.} 8. h3 {[%emt 0:01:01]} Bh5 {[%emt 0:00:01]} 9. Be3 {[%emt 0:01:42]} Kh8 {[%emt 0:00:05] C55: Two Knights: 4 d3, 4 d4 exd4 5 e5 and Max Lange Attack.} 10. Kh1 {[%emt 0:02:36] [#]} Qc8 $146 {[%emt 0:03:38][%cal Oc6d4]} (10... Nd4 $5 {[%cal Rd4f3]}) ({Predecessor:} 10... Qd7 11. Bb5 a6 12. Bxc6 bxc6 13. Rg1 Rab8 14. b3 Bxf3 15. Qxf3 d5 16. Bg5 Ng8 17. Bxe7 Nxe7 {½-½ Suchanek,L-Hora,V CSR Army-ch12 1965 (14)}) 11. Rg1 {[%emt 0:01:46]} Nd4 {[%emt 0:01:11]} 12. g4 {[%emt 0:00:45]} Nxf3 {[%emt 0:00:02]} (12... Nxg4 $1 $11 13. hxg4 Bxg4 14. Rxg4 Qxg4 15. Nxd4 {[%mdl 64] Discovered Attack} Qh3+ 16. Kg1 exd4 17. Bxd4 Bf6) 13. Qxf3 $14 {[%emt 0:00:04]} Bg6 {[%emt 0:00:01]} 14. Bb3 {[%emt 0:02:59]} c6 {[%emt 0:00:19]} 15. Ne2 {[%emt 0:00:17]} h6 {[%emt 0:01:02]} 16. Ng3 {[%emt 0:01:31]} Nh7 {[%emt 0:00:30]} 17. Nf5 {[%emt 0:00:19]} Qd8 {[%emt 0:00:07]} 18. Qg3 {[%emt 0:01:10]} Bg5 {[%emt 0:01:06]} 19. h4 {[%emt 0:01:36]} Bxe3 {[%emt 0:00:04]} 20. Nxe3 {[%emt 0:00:14]} f6 {[%emt 0:00:04]} 21. f4 {[%emt 0:05:12]} exf4 {[%emt 0:00:16] Black is weak on the light squares} 22. Qxf4 {[%emt 0:00:01]} Qd7 {[%emt 0:00:12]} 23. Nf5 {[%emt 0:00:31]} Rad8 {[%emt 0:00:12]} 24. Rae1 {[%emt 0:00:40]} Bf7 {[%emt 0:00:53]} 25. Bxf7 {[%emt 0:00:11]} Qxf7 {[%emt 0:00:13]} 26. d4 {[%emt 0:00:33] White has more active pieces.} (26. Nxd6 $2 {perishes.} Qc7 27. Qg3 (27. e5 $2 fxe5 28. Qxe5 Rxd6 $19) 27... Rxd6 $19) 26... Qe6 {[%emt 0:02:13]} 27. Re3 {[%emt 0:00:04]} Rd7 {[%emt 0:02:25]} 28. Kh2 {[%emt 0:00:31]} Kg8 {[%emt 0:00:54]} 29. Rge1 $36 {[%emt 0:00:19][%mdl 2048] White has some pressure.} c5 {[%emt 0:02:14]} 30. c3 {[%emt 0:00:14]} cxd4 {[%emt 0:00:35]} 31. cxd4 {[%emt 0:00:02]} Rc8 {[%emt 0:00:03]} 32. R1e2 {[%emt 0:00:33]} a5 {[%emt 0:02:57]} 33. e5 {[%emt 0:00:48]} dxe5 {[%emt 0:00:53]} 34. dxe5 {[%emt 0:00:03]} Rc4 $2 {[%emt 0:00:06] [#]} (34... Rcd8 $16 {was worth a try.}) 35. Qg3 $1 $18 {[%emt 0:00:57] Hoping for exf6.} Nf8 {[%emt 0:01:41] [#]} 36. exf6 $2 {[%emt 0:00:26]} ({White has to play} 36. Rf2 $1 $18 {Black must now prevent exf6.} fxe5 37. Rxe5 Rxg4 38. Rxe6 Rxg3 39. Re8 (39. Ne7+ Kh7 $18)) 36... Qxf6 $14 {[%emt 0:00:01]} 37. Ne7+ {[%emt 0:00:27]} ({Better is} 37. Re8 $14 Kh7 38. h5) 37... Kh7 $1 $11 {[%emt 0:01:18] The position is equal.} 38. Rf3 {[%emt 0:00:09][%mdl 64] Skewer, Deflection} Qa6 {[%emt 0:01:00][%cal Oc4g4] Threatens to win with ...Rxg4!} 39. Rxf8 {[%emt 0:00:09][%cal Of8h8] Threatening mate with Rh8+!} (39. Rg2 {simplifies} Ng6 40. Nxg6 Qxg6 41. Rf8) 39... Rcc7 {[%emt 0:00:02]} 40. Qe5 {[%emt 0:00:48] Qf5+ would kill now.} Rxe7 {[%emt 0:00:17]} 41. Qf5+ {[%emt 0:00:02]} (41. Qxe7 $2 {is the wrong capture.} Rxe7 42. Rxe7 Qd6+ 43. Kh3 Qxe7 $19) 41... g6 {[%emt 0:00:01]} 42. Rxe7+ {[%emt 0:00:17]} Rxe7 {[%emt 0:00:00]} 43. Rh8+ {[%emt 0:00:11][%mdl 64] Decoy} Kxh8 {[%emt 0:00:06][%mdl 4096] Endgame} 44. Qf8+ {[%emt 0:00:01]} Kh7 {[%emt 0:00:02] ( -> ...Qe2+)} 45. Qxe7+ {[%emt 0:00:01]} Kg8 {[%emt 0:00:04]} 46. Qe8+ {[%emt 0:00:18]} Kg7 {[%emt 0:00:02]} 47. Qe7+ {[%emt 0:00:03]} Kg8 {[%emt 0:00:01]} 48. Qe8+ {[%emt 0:00:22]} Kg7 {[%emt 0:00:01]} 49. Qe7+ {[%emt 0:00:04]} Kg8 {[%emt 0:00:01]} 50. Qe8+ {[%emt 0:00:03] An exciting game.   Weighted Error Value: White=0.17 (very precise) /Black=0.13 (very precise)} 1/2-1/2

[Event "American Cup Elimination 2023"]
[Site "Saint Louis"]
[Date "2023.03.21"]
[Round "2.3"]
[White "Aronian, Levon"]
[Black "Caruana, Fabiano"]
[Result "1-0"]
[ECO "C77"]
[WhiteElo "2745"]
[BlackElo "2766"]
[Annotator "TA"]
[PlyCount "125"]
[EventDate "2023.03.15"]
[EventType "k.o."]
[EventCountry "USA"]
[SourceTitle "playchess.com"]
[Source "ChessBase"]
[SourceQuality "1"]
[TimeControl "600+5"]

{[%evp 13,125,21,32,23,23,21,22,26,29,31,52,29,41,67,53,-19,-12,-24,0,-14,4,-9,0,0,0,-7,0,0,-7,0,55,39,67,9,129,6,6,6,8,0,0,0,56,60,65,13,69,13,68,83,266,215,205,190,168,181,183,183,182,0,0,0,204,190,210,194,204,195,184,0,14,11,16,13,239,248,252,260,262,227,433,408,553,542,606,602,593,588,612,551,534,526,704,704,767,685,675,673,631,600,672,654,835,835,2168,2097,7439,7704,9393,6847,7491,6101,5469,5405]} 1. e4 {[%emt 0:00:01]} e5 {[%emt 0:00:01]} 2. Nf3 {[%emt 0:00:02]} Nc6 {[%emt 0:00:01]} 3. Bb5 {[%emt 0:00:02]} a6 {[%emt 0:00:01]} 4. Ba4 {[%emt 0:00:02]} Nf6 {[%emt 0:00:02]} 5. d3 {[%emt 0:00:02]} d6 {[%emt 0:00:01]} 6. c3 {[%emt 0:00:04]} g6 {[%emt 0:00:05]} 7. O-O {[%emt 0:00:03]} Bg7 {[%emt 0:00:01]} 8. Be3 {[%emt 0:00:10] C77: Ruy Lopez: 3...a6 4 Ba4 Nf6, unusual lines.} O-O {[%emt 0:00:06]} 9. Nbd2 {[%emt 0:00:02]} h6 {[%emt 0:00:13]} 10. h3 {[%emt 0:00:02] The position is equal.} Nd7 {[%emt 0:00:03] [#]} 11. d4 $5 $146 {[%emt 0:00:26][%mdl 8] New and interesting.} ({Predecessor:} 11. Nh2 Ne7 12. f4 exf4 13. Bxf4 Nc5 14. Bc2 Ne6 15. Be3 f5 16. d4 f4 17. Bf2 {1-0 Murzin,V (2502)-Nihal,S (2620) Gelfand Challenge rapid 2021 (19)}) 11... f5 {[%emt 0:00:33]} 12. exf5 {[%emt 0:00:20]} gxf5 {[%emt 0:00:02]} 13. dxe5 {[%emt 0:00:27]} dxe5 {[%emt 0:00:02]} 14. Bxc6 {[%emt 0:00:46]} (14. g3 $14) 14... bxc6 $11 {[%emt 0:00:01]} 15. Nb3 {[%emt 0:00:02]} (15. Qa4 {looks sharper.} f4 16. Qc4+ Kh7 17. Qxc6 fxe3 18. Qxa8 exd2 19. Qe4+) 15... Qf6 {[%emt 0:02:35]} 16. Re1 {[%emt 0:00:11]} Re8 {[%emt 0:00:09]} 17. Qc2 {[%emt 0:00:35]} Qf7 {[%emt 0:02:53]} 18. Rad1 {[%emt 0:01:08]} e4 {[%emt 0:00:10]} 19. Nfd4 {[%emt 0:00:01]} f4 {[%emt 0:01:26][%cal Bf5f4,Bf4f3][%mdl 32]} 20. Bc1 {[%emt 0:00:21]} c5 {[%emt 0:00:31]} 21. Ne2 {[%emt 0:00:20]} e3 {[%emt 0:00:27]} (21... c4 $11 22. Nbd4 f3) 22. fxe3 {[%emt 0:00:36] Rf1 is the strong threat.} (22. Rf1 $5 {[%cal Rf2e3]}) 22... f3 $1 {[%emt 0:00:01] aiming for ...f2+.} (22... fxe3 23. Rf1 Qe7 24. Rf3 $16) (22... c4 23. Nbd4 $16) 23. Nf4 {[%emt 0:00:11]} (23. Rf1 $14) 23... Bb7 {[%emt 0:01:00]} (23... a5 $1 $11 {keeps the balance.}) 24. Qg6 {[%emt 0:01:47]} ({Better is} 24. e4 $16) 24... Qxg6 {[%emt 0:00:26]} 25. Nxg6 {[%emt 0:00:01] A dynamic duo of knights.} Rad8 {[%emt 0:00:01]} 26. Nf4 {[%emt 0:00:05][%cal Oe3e4]} Ba8 {[%emt 0:00:50] Prevents e4} 27. gxf3 {[%emt 0:03:01]} Ne5 {[%emt 0:00:01]} (27... Bxf3 $11 28. Rd2 Bf6) 28. Kf2 {[%emt 0:00:17] Hoping for e4.} Nxf3 {[%emt 0:00:01]} 29. Rf1 {[%emt 0:00:03]} (29. Rxd8 $14 Rxd8 30. Rf1) 29... c4 {[%emt 0:00:05]} (29... Rxd1 $11 30. Rxd1 c4) 30. Nc5 {[%emt 0:00:13]} ({White should play} 30. Rxd8 $14 Rxd8 31. Nc5) 30... Bf6 {[%emt 0:00:21]} (30... Rxd1 $1 $11 31. Rxd1 Ng5) 31. Rxd8 {[%emt 0:00:06]} (31. Nxa6 Bh4+ 32. Ke2 Nh2 33. Rxd8 Rxd8 34. Rg1+ Kf7 $11) (31. Ke2 {is interesting.} Ng5 32. Nd7 Bg7 33. h4) 31... Rxd8 {[%emt 0:00:01]} (31... Bxd8 $16 32. Nfe6 (32. Nxa6 Nh2 $11) 32... Ng5 33. Nxd8 Rxd8) 32. Ke2 {[%emt 0:00:01]} ({Worse is} 32. Nxa6 Bh4+ 33. Ke2 Nh2 34. Rg1+ Kf7 $11) 32... Rd6 {[%emt 0:00:25]} 33. Rxf3 {[%emt 0:00:17]} Bxf3+ {[%emt 0:00:01]} 34. Kxf3 {[%emt 0:00:01]} Rd1 {[%emt 0:00:01]} 35. Ne2 {[%emt 0:00:01]} Rf1+ {[%emt 0:00:09]} 36. Kg4 {[%emt 0:00:27]} Re1 {[%emt 0:00:02]} 37. Kf3 {[%emt 0:00:13]} Rf1+ $1 {[%emt 0:00:01]} 38. Kg2 {[%emt 0:00:07]} Re1 {[%emt 0:00:01] [#]} 39. Kf2 {[%emt 0:00:03]} Bh4+ {[%emt 0:00:03]} 40. Kf3 {[%emt 0:00:01]} Kf7 {[%emt 0:00:24]} 41. e4 $2 {[%emt 0:00:24]} ({White should try} 41. b4 $18) 41... Rf1+ {[%emt 0:00:05]} 42. Kg4 {[%emt 0:00:01]} Be7 {[%emt 0:00:05]} 43. Nxa6 {[%emt 0:00:01]} Re1 $2 {[%emt 0:00:06] White leaves nothing to chance now.} (43... h5+ $1 $11 44. Kxh5 Re1) 44. Kf3 $18 {[%emt 0:00:01]} Rf1+ {[%emt 0:00:00]} 45. Kg2 {[%emt 0:00:01]} Re1 {[%emt 0:00:01] [#]} 46. Kf2 {[%emt 0:00:10]} Rh1 {[%emt 0:00:08]} (46... Bh4+ 47. Kf3 h5) 47. Bxh6 {[%emt 0:00:15]} Rxh3 {[%emt 0:00:08]} 48. Bf4 {[%emt 0:00:01] White is clearly winning.} c5 {[%emt 0:00:03]} 49. Nc7 {[%emt 0:00:04]} Rh1 {[%emt 0:00:05]} 50. Nd5 {[%emt 0:00:02]} Bh4+ {[%emt 0:00:02]} 51. Kf3 {[%emt 0:00:09]} Rf1+ {[%emt 0:00:04]} 52. Kg4 {[%emt 0:00:01]} Bd8 {[%emt 0:00:03]} 53. Be3 {[%emt 0:00:09]} Re1 {[%emt 0:00:11]} 54. Kf3 {[%emt 0:00:01]} Rf1+ {[%emt 0:00:01]} 55. Kg2 {[%emt 0:00:01]} Re1 {[%emt 0:00:00]} 56. Kf2 {[%emt 0:00:01]} Bh4+ {[%emt 0:00:01]} 57. Kf3 {[%emt 0:00:01]} Rf1+ {[%emt 0:00:01]} 58. Kg4 {[%emt 0:00:02]} Re1 {[%emt 0:00:04]} 59. Kxh4 {[%emt 0:00:11] Strongly threatening Nef4.} Rxe2 {[%emt 0:00:01]} 60. Kg4 {[%emt 0:00:02]} ({Weaker is} 60. Bxc5 Rxe4+ 61. Kg3 Re5 $16) 60... Rxb2 {[%emt 0:00:08]} 61. Bxc5 {[%emt 0:00:01] And now Kf5 would win.} Rxa2 {[%emt 0:00:08]} 62. Bd4 {[%emt 0:00:01] Threatens to win with Kf5.} Ra1 {[%emt 0:00:07]} 63. Kf5 {[%emt 0:00:03] Weighted Error Value: White=0.23 (precise) /Black=0.33} 1-0